bitfinex/quotes_SOLUSD_20250204
["timestamp","ask_amount","ask_price","bid_price","bid_amount"]
[1738649844450,1.9908,206.86,206.85,43.69612508]
[1738649844853,1.9908,206.86,206.83,43.69612508]
[1738649845084,0.90654343,206.85,206.79,43.69612508]
[1738649845248,44.60266851,206.85,206.77,43.69612508]
[1738649845876,43.69612508,206.83,206.75,43.69612508]
[1738649846074,0.90687391,206.82,206.75,43.69612508]
[1738649846276,44.60296058,206.85,206.77,43.69612508]
[1738649846458,49.43746058,206.85,206.77,43.69612508]
[1738649846860,5.7413355,206.85,206.79,43.69612508]
[1738649847383,5.7413355,206.85,206.77,43.69612508]
[1738649848291,49.43746058,206.85,206.77,43.69612508]
[1738649849358,5.7413355,206.85,206.79,43.69612508]
[1738649849870,43.69612508,206.81,206.74,0.063]
[1738649850084,43.69612508,206.77,206.74,0.063]
[1738649850278,0.90710219,206.76,206.74,0.063]
[1738649850586,43.69612508,206.87,206.75,43.69612508]
[1738649850789,4.8336,206.89,206.82,43.69612508]
[1738649850954,1.9908,206.86,206.84,43.69612508]
[1738649851386,72.34655559,206.91,206.84,43.69612508]
[1738649851687,0.90646559,206.9,206.84,43.69612508]
[1738649851877,0.90645942,206.9,206.84,43.69612508]
[1738649852052,12.1029,207.08,206.92,1.0]
[1738649852255,0.03,207.08,207.07,43.69612508]
[1738649853613,2.43633524,207.17,207.07,43.69612508]
[1738649853614,1.8768,207.17,207.07,87.39225016]
[1738649853812,0.03,207.22,207.16,43.69612508]
[1738649854100,0.03,207.22,207.2,43.69612508]
[1738649854305,1.0,207.22,207.16,51.13505784]
[1738649854483,1.0,207.22,207.16,7.43893276]
[1738649855219,1.0,207.22,207.16,51.13505784]
[1738649855388,14.53733853,207.25,207.18,43.69612508]
[1738649855702,2.8147,207.26,207.22,43.69612508]
[1738649856278,1.8147,207.26,207.24,43.69612508]
[1738649856846,1.0,207.31,207.24,43.69612508]
[1738649856984,1.0,207.27,207.2,43.69612508]
[1738649857174,44.69612508,207.27,207.2,43.69612508]
[1738649857583,44.69612508,207.27,207.22,43.69612508]
[1738649857584,1.0,207.27,207.22,43.69612508]
[1738649857801,1.0,207.27,207.2,43.69612508]
[1738649858007,44.69612508,207.25,207.18,43.69612508]
[1738649858376,44.69612508,207.25,207.16,43.69612508]
[1738649858377,1.0,207.23,207.16,43.69612508]
[1738649858685,1.0,207.2,207.14,43.69612508]
[1738649858872,1.0,207.18,207.13,7.43893276]
[1738649859074,1.0,207.2,207.14,43.69612508]
[1738649859274,43.69612508,207.23,207.14,43.69612508]
[1738649859499,43.69612508,207.23,207.16,43.69612508]
[1738649860410,43.69612508,207.27,207.18,44.69612508]
[1738649860616,43.69612508,207.23,207.18,1.0]
[1738649860806,43.69612508,207.23,207.16,44.69612508]
[1738649861696,4.8257,207.23,207.18,43.69612508]
[1738649862003,13.41184853,207.29,207.2,43.69612508]
[1738649862004,4.8245,207.28,207.2,43.69612508]
[1738649862384,4.824,207.3,207.24,43.69612508]
[1738649862800,4.824,207.3,207.23,1.0]
[1738649862983,43.69612508,207.29,207.22,1.0]
[1738649863181,43.69612508,207.29,207.2,43.69612508]
[1738649863399,43.69612508,207.27,207.19,1.0]
[1738649863607,4.8243,207.28,207.16,43.69612508]
[1738649863608,43.69612508,207.25,207.16,43.69612508]
[1738649863884,43.69612508,207.17,207.12,7.43893276]
[1738649864085,43.69612508,207.16,207.12,7.43893276]
[1738649864914,43.69612508,207.18,207.12,7.43893276]
[1738649865409,43.69612508,207.21,207.14,43.69612508]
[1738649865711,4.8255,207.23,207.16,43.69612508]
[1738649865882,4.8251,207.25,207.18,43.69612508]
[1738649866082,43.69612508,207.2,207.14,43.69612508]
[1738649866530,43.69612508,207.24,207.16,44.69612508]
[1738649866831,43.69612508,207.22,207.16,44.69612508]
[1738649866989,43.69612508,207.22,207.18,1.0]
[1738649867381,43.69612508,207.22,207.15,1.0]
[1738649867586,43.69612508,207.18,207.1,44.69612508]
[1738649867811,1.0,207.24,207.08,1.0]
[1738649867812,43.69612508,207.14,207.08,1.0]
[1738649867987,43.69612508,207.14,207.07,1.0]
[1738649868196,43.69612508,207.14,207.06,43.69612508]
[1738649868197,43.69612508,207.14,207.1,1.0]
[1738649868620,43.69612508,207.16,207.1,1.0]
[1738649868814,43.69612508,207.18,207.12,1.0]
[1738649869015,43.69612508,207.2,207.14,1.0]
[1738649869424,43.69612508,207.2,207.14,44.69612508]
[1738649870201,48.52202508,207.22,207.17,1.0]
[1738649870597,43.69612508,207.2,207.13,1.0]
[1738649870813,43.69612508,207.14,207.09,1.0]
[1738649871127,43.69612508,207.17,207.13,1.0]
[1738649871320,43.69612508,207.21,207.13,44.69612508]
[1738649871490,39.67301555,207.27,207.18,1.0]
[1738649871491,48.52142508,207.24,207.18,1.0]
[1738649871692,43.69612508,207.19,207.11,44.69612508]
[1738649871921,43.69612508,207.16,207.14,1.0]
[1738649872308,43.69612508,207.2,207.14,1.0]
[1738649872710,43.69612508,207.18,207.12,1.0]
[1738649873419,43.69612508,207.2,207.12,44.69612508]
[1738649873620,1.0,207.23,207.11,1.0]
[1738649873621,43.69612508,207.18,207.11,1.0]
[1738649873926,43.69612508,207.14,207.1,1.0]
[1738649874618,43.69612508,207.14,207.06,44.69612508]
[1738649874816,43.69612508,207.1,207.04,1.0]
[1738649875008,17.8942,207.17,207.04,1.0]
[1738649875009,43.69612508,207.08,207.04,1.0]
[1738649875207,43.69612508,207.1,207.07,1.0]
[1738649875422,16.8942,207.17,207.11,1.0]
[1738649875423,43.69612508,207.14,207.11,1.0]
[1738649875725,43.69612508,207.18,207.11,1.0]
[1738649875910,48.52282508,207.18,207.11,1.0]
[1738649876230,48.52282508,207.18,207.13,1.0]
[1738649876926,43.69612508,207.16,207.09,1.0]
[1738649877121,43.69612508,207.14,207.07,1.0]
[1738649877421,43.69612508,207.1,207.04,1.0]
[1738649877629,43.69612508,207.1,207.03,1.0]
[1738649877832,43.69612508,207.08,207.03,1.0]
[1738649878120,48.52522508,207.08,207.01,1.063]
[1738649878514,43.69612508,207.1,207.03,1.0]
[1738649879222,48.52472508,207.1,207.05,1.0]
[1738649879421,48.52472508,207.1,207.02,44.69612508]
[1738649879612,48.52472508,207.1,207.05,1.0]
[1738649879816,48.52472508,207.1,207.01,1.063]
[1738649879817,43.69612508,207.08,207.01,1.063]
[1738649880010,43.69612508,207.1,207.03,1.0]
[1738649880702,43.69612508,207.04,207.01,0.063]
[1738649880903,43.69612508,207.02,207.01,0.063]
[1738649881216,20.0,206.99,206.93,0.063]
[1738649881409,43.69612508,206.94,206.93,0.063]
[1738649881626,45.60312508,207.0,206.93,1.063]
[1738649881810,43.69612508,207.04,206.98,1.0]
[1738649882005,43.69612508,207.02,206.95,1.0]
[1738649882208,43.69612508,207.0,206.98,1.0]
[1738649882521,43.69612508,207.02,206.94,1.0]
[1738649882712,43.69612508,206.96,206.93,0.063]
[1738649882915,43.69612508,206.94,206.93,0.063]
[1738649883816,20.0,206.91,206.89,0.063]
[1738649884012,20.0,206.87,206.8,0.063]
[1738649884218,43.69612508,206.84,206.8,0.063]
[1738649884813,43.69612508,206.9,206.85,1.0]
[1738649885134,36.54435942,206.95,206.94,1.0]
[1738649885315,36.54435942,206.95,206.92,1.0]
[1738649885707,4.8314,206.98,206.92,1.0]
[1738649885907,50.59822508,207.0,206.94,1.0]
[1738649886128,43.69612508,206.96,206.94,1.0]
[1738649886317,43.69612508,206.96,206.89,44.69612508]
[1738649886523,43.69612508,206.9,206.8,1.063]
[1738649886860,43.69612508,206.87,206.84,1.0]
[1738649887011,43.69612508,206.91,206.88,1.0]
[1738649887217,43.69612508,206.93,206.88,1.0]
[1738649887428,43.69612508,206.91,206.88,1.0]
[1738649887730,43.69612508,206.89,206.88,1.0]
[1738649887937,43.69612508,206.89,206.83,1.0]
[1738649888248,43.69612508,206.89,206.88,1.0]
[1738649888538,4.8323,206.94,206.88,1.0]
[1738649888834,43.69612508,206.9,206.84,1.0]
[1738649889038,43.69612508,206.88,206.8,44.75912508]
[1738649889547,43.69612508,206.84,206.8,1.063]
[1738649889725,43.69612508,206.84,206.8,0.063]
[1738649890540,48.53082508,206.84,206.8,0.063]
[1738649890921,43.69612508,206.88,206.82,1.0]
[1738649891121,48.52902508,206.92,206.85,1.0]
[1738649891430,48.52902508,206.92,206.87,1.0]
[1738649891740,48.52842508,206.94,206.87,1.0]
[1738649892041,36.54435942,206.95,206.9,1.0]
[1738649892217,43.69612508,206.98,206.93,1.0]
[1738649892421,50.59822508,207.0,206.96,1.0]
[1738649892934,0.03,207.01,206.98,1.0]
[1738649893136,4.8607,207.01,206.98,1.0]
[1738649893317,43.69612508,207.0,206.93,1.0]
[1738649893626,43.69612508,206.96,206.93,1.0]
[1738649894228,43.69612508,206.98,206.93,1.0]
[1738649894439,48.52742508,206.98,206.97,1.0]
[1738649894615,48.52742508,206.98,206.95,1.0]
[1738649894813,48.52742508,206.98,206.93,1.0]
[1738649895344,48.52742508,206.98,206.95,1.0]
[1738649895642,48.52712508,207.0,206.97,1.0]
[1738649897746,48.52712508,207.0,206.93,1.0]
[1738649897949,48.52712508,207.0,206.97,1.0]
[1738649898119,48.52712508,207.0,206.93,1.0]
[1738649898324,48.52712508,207.0,206.97,1.0]
[1738649900651,43.69612508,206.98,206.94,1.0]
[1738649900831,43.69612508,206.96,206.89,1.0]
[1738649901023,43.69612508,206.9,206.85,1.0]
[1738649901218,43.69612508,206.86,206.8,1.063]
[1738649901418,43.69612508,206.84,206.8,1.063]
[1738649901734,43.69612508,206.86,206.8,1.063]
[1738649902130,43.69612508,206.86,206.8,0.063]
[1738649902324,43.69612508,206.82,206.8,0.063]
[1738649902847,4.8353,206.81,206.8,0.063]
[1738649903033,43.69612508,206.82,206.8,0.063]
[1738649903556,44.69612508,206.9,206.81,1.0]
[1738649903557,43.69612508,206.84,206.81,1.0]
[1738649903857,4.8346,206.85,206.81,1.0]
[1738649904847,43.69612508,206.87,206.81,1.0]
[1738649905023,43.69612508,206.89,206.83,1.0]
[1738649905217,1.7425,206.93,206.83,1.0]
[1738649905218,43.69612508,206.91,206.85,1.0]
[1738649905420,48.52762508,206.98,206.92,1.0]
[1738649905722,43.69612508,206.96,206.92,1.0]
[1738649905922,43.69612508,206.94,206.91,1.0]
[1738649906149,43.69612508,206.92,206.84,1.0]
[1738649906359,43.69612508,206.86,206.84,1.0]
[1738649906528,43.69612508,206.86,206.82,1.0]
[1738649906850,43.69612508,206.85,206.82,1.0]
[1738649907146,12.0825,206.92,206.82,1.0]
[1738649907147,43.69612508,206.87,206.82,1.0]
[1738649907345,43.69612508,206.87,206.84,1.0]
[1738649907548,36.54435942,206.95,206.8,0.063]
[1738649907549,43.69612508,206.89,206.86,1.0]
[1738649907857,48.52912508,206.91,206.88,1.0]
[1738649908348,43.69612508,206.92,206.88,1.0]
[1738649909033,48.52892508,206.92,206.88,1.0]
[1738649910352,48.52892508,206.92,206.85,1.0]
[1738649910564,43.69612508,206.9,206.85,1.0]
[1738649910770,43.69612508,206.88,206.85,1.0]
[1738649911271,43.69612508,206.86,206.81,1.0]
[1738649911473,43.69612508,206.82,206.8,0.063]
[1738649912435,0.12549,206.8,206.74,0.063]
[1738649912633,43.69612508,206.75,206.74,0.063]
[1738649912862,43.69612508,206.75,206.7,0.063]
[1738649912863,20.12549,206.71,206.7,0.063]
[1738649913054,20.0,206.67,206.57,1.0]
[1738649913235,43.69612508,206.64,206.59,1.0]
[1738649913552,43.69612508,206.64,206.57,1.0]
[1738649913945,43.69612508,206.64,206.56,43.75912508]
[1738649914354,43.69612508,206.64,206.61,1.0]
[1738649914926,43.69612508,206.64,206.59,1.0]
[1738649915131,48.53542508,206.64,206.59,1.0]
[1738649915560,48.53542508,206.64,206.57,1.0]
[1738649915727,43.69612508,206.65,206.58,43.69612508]
[1738649915932,43.69612508,206.68,206.63,1.063]
[1738649916256,4.8362,206.77,206.68,1.0]
[1738649916447,4.8362,206.77,206.7,1.0]
[1738649916635,20.0,206.76,206.7,1.0]
[1738649916832,4.8362,206.77,206.7,1.0]
[1738649917159,48.53232508,206.77,206.72,1.0]
[1738649917451,43.69612508,206.77,206.72,1.0]
[1738649917657,43.69612508,206.75,206.7,1.0]
[1738649917858,43.69612508,206.75,206.72,1.0]
[1738649918054,43.69612508,206.77,206.72,1.0]
[1738649918263,41.37975942,206.81,206.78,1.0]
[1738649918473,48.53062508,206.85,206.78,1.0]
[1738649918836,0.12549,206.84,206.78,1.0]
[1738649919069,43.69612508,206.83,206.78,1.0]
[1738649919267,48.53062508,206.85,206.81,1.0]
[1738649919970,48.53012508,206.87,206.81,1.0]
[1738649920164,43.69612508,206.85,206.81,1.0]
[1738649920673,43.69612508,206.83,206.77,1.0]
[1738649920859,43.69612508,206.79,206.73,1.0]
[1738649921045,43.69612508,206.74,206.72,1.0]
[1738649922566,48.53322508,206.74,206.68,1.0]
[1738649922869,43.69612508,206.72,206.7,1.0]
[1738649923257,48.53362508,206.72,206.7,1.0]
[1738649923676,43.69612508,206.74,206.7,1.0]
[1738649923968,43.69612508,206.72,206.7,1.0]
[1738649925269,43.69612508,206.74,206.72,1.0]
[1738649925466,43.69612508,206.76,206.74,1.0]
[1738649925668,43.69612508,206.8,206.76,1.0]
[1738649925850,43.69612508,206.82,206.76,1.0]
[1738649926051,85.0751845,206.84,206.79,1.0]
[1738649926378,85.0751845,206.84,206.81,1.0]
[1738649927464,85.0751845,206.84,206.82,1.0]
[1738649928680,20.0,206.81,206.77,1.0]
[1738649928881,85.2006745,206.84,206.74,1.0]
[1738649928882,43.69612508,206.78,206.74,1.0]
[1738649929176,43.69612508,206.78,206.76,1.0]
[1738649929384,85.0751845,206.84,206.78,1.0]
[1738649929681,85.0751845,206.84,206.8,1.0]
[1738649930090,36.54435942,206.84,206.82,1.0]
[1738649930584,41.37905942,206.84,206.8,1.0]
[1738649930890,85.0751845,206.84,206.8,1.0]
[1738649931088,85.0751845,206.84,206.82,1.0]
[1738649931387,36.54435942,206.84,206.82,44.69612508]
[1738649933485,48.52902508,206.92,206.86,1.0]
[1738649933687,48.52902508,206.92,206.9,1.0]
[1738649934581,85.0728845,206.94,206.9,1.0]
[1738649934975,41.37675942,206.94,206.9,1.0]
[1738649935181,41.37675942,206.94,206.86,43.69612508]
[1738649935182,36.54435942,206.94,206.93,1.0]
[1738649940373,48.55722508,207.0,206.99,1.0]
[1738649940673,48.55722508,207.0,206.86,12.0853]
[1738649940674,13.53733853,206.99,206.91,1.0]
[1738649940874,43.69612508,206.92,206.91,1.0]
[1738649941079,43.69612508,206.92,206.89,1.0]
[1738649941384,80.2404845,206.98,206.95,1.0]
[1738649941898,36.54435942,206.98,206.97,1.0]
[1738649943089,0.03,207.0,206.97,1.0]
[1738649943298,0.03,207.0,206.99,44.69612508]
[1738649943471,4.828,207.13,207.12,1.0]
[1738649943802,0.03,207.15,207.14,1.0]
[1738649944167,0.03,207.15,207.14,44.69612508]
[1738649944568,0.03,207.15,207.14,45.69612508]
[1738649945197,0.03,207.15,207.14,46.42009062]
[1738649945497,0.03,207.15,207.14,45.42009062]
[1738649945701,0.03,207.15,207.14,44.69612508]
[1738649946503,0.03,207.15,207.14,59.10797361]
[1738649946687,0.03,207.15,207.14,60.10797361]
[1738649947005,0.0001,207.15,207.14,60.10797361]
[1738649947201,0.0001,207.15,207.14,44.69612508]
[1738649947372,48.51942508,207.33,207.29,1.0]
[1738649947570,48.51882508,207.35,207.32,1.0]
[1738649947789,43.69612508,207.35,207.32,1.0]
[1738649948299,43.69612508,207.33,207.29,1.0]
[1738649948512,43.69612508,207.3,207.29,1.0]
[1738649949171,43.69612508,207.32,207.29,1.0]
[1738649949370,43.69612508,207.3,207.27,1.0]
[1738649949571,43.69612508,207.3,207.26,1.0]
[1738649949792,43.69612508,207.3,207.29,1.0]
[1738649950306,43.69612508,207.3,207.26,1.0]
[1738649950473,43.69612508,207.28,207.26,1.0]
[1738649950675,43.69612508,207.28,207.23,1.0]
[1738649950890,43.69612508,207.28,207.25,1.0]
[1738649951470,43.69612508,207.3,207.27,1.0]
[1738649951666,43.69612508,207.28,207.24,1.0]
[1738649952075,43.69612508,207.26,207.24,1.0]
[1738649952319,43.69612508,207.3,207.26,1.0]
[1738649952475,43.69612508,207.32,207.29,1.0]
[1738649952794,43.69612508,207.3,207.27,1.0]
[1738649952984,43.69612508,207.3,207.28,1.0]
[1738649953509,43.69612508,207.3,207.24,1.0]
[1738649953800,43.69612508,207.26,207.24,1.0]
[1738649954301,43.69612508,207.28,207.24,1.0]
[1738649954598,20.0,207.3,207.26,1.0]
[1738649954796,43.69612508,207.29,207.26,1.0]
[1738649955400,43.69612508,207.27,207.24,1.0]
[1738649955598,4.8236,207.31,207.16,1.0]
[1738649955599,43.69612508,207.25,207.16,1.0]
[1738649955786,43.69612508,207.21,207.2,1.0]
[1738649955984,43.69612508,207.23,207.22,1.0]
[1738649956300,43.69612508,207.23,207.18,1.0]
[1738649956796,48.52172508,207.23,207.18,1.0]
[1738649957299,48.52122508,207.25,207.2,1.0]
[1738649957474,48.52042508,207.29,207.25,1.0]
[1738649958393,43.69612508,207.27,207.23,1.0]
[1738649958591,43.69612508,207.24,207.19,1.0]
[1738649958994,43.69612508,207.26,207.21,1.0]
[1738649959198,43.69612508,207.26,207.25,1.0]
[1738649959396,43.69612508,207.26,207.23,1.0]
[1738649960508,4.825,207.25,207.23,1.0]
[1738649960695,43.69612508,207.24,207.17,1.0]
[1738649960876,43.69612508,207.22,207.18,1.0]
[1738649961197,43.69612508,207.22,207.16,1.0]
[1738649961385,43.69612508,207.22,207.17,1.0]
[1738649961910,43.69612508,207.22,207.18,1.0]
[1738649962083,43.69612508,207.24,207.21,1.0]
[1738649962481,4.8255,207.23,207.19,1.0]
[1738649962980,43.69612508,207.22,207.19,1.0]
[1738649963303,43.69612508,207.22,207.17,1.0]
[1738649963801,43.69612508,207.22,207.15,0.063]
[1738649963802,4.8255,207.23,207.18,1.0]
[1738649964306,48.52102508,207.26,207.23,1.0]
[1738649964604,0.03,207.29,207.28,1.0]
[1738649965318,4.8542,207.29,207.26,1.0]
[1738649965472,43.69612508,207.28,207.24,1.0]
[1738649965680,4.8542,207.29,207.24,1.0]
[1738649966717,0.03,207.29,207.27,1.0]
[1738649967025,20.0,207.26,207.21,1.0]
[1738649967188,26.79140049,207.24,207.21,1.0]
[1738649967385,26.79140049,207.22,207.18,1.0]
[1738649967617,26.79140049,207.2,207.18,1.0]
[1738649967980,26.79140049,207.22,207.18,1.0]
[1738649968187,26.79140049,207.24,207.2,1.0]
[1738649968405,26.79140049,207.24,207.18,1.0]
[1738649968614,26.79140049,207.24,207.21,1.0]
[1738649968794,4.8255,207.23,207.21,1.0]
[1738649969608,26.79140049,207.22,207.17,1.0]
[1738649969800,26.79140049,207.2,207.17,1.0]
[1738649969998,26.79140049,207.2,207.19,1.0]
[1738649970311,26.79140049,207.2,207.16,1.0]
[1738649970901,4.8264,207.19,207.18,1.0]
[1738649971102,4.8264,207.19,207.16,1.0]
[1738649971297,26.79140049,207.22,207.2,1.0]
[1738649971502,26.79140049,207.24,207.2,1.0]
[1738649971719,26.79140049,207.24,207.23,1.0]
[1738649972018,26.79140049,207.24,207.19,1.0]
[1738649972193,26.79140049,207.22,207.17,1.0]
[1738649972388,26.79140049,207.18,207.15,1.063]
[1738649972909,4.8269,207.17,207.15,1.063]
[1738649973796,4.8266,207.19,207.17,1.0]
[1738649973997,26.79140049,207.24,207.19,1.0]
[1738649974210,26.79140049,207.24,207.22,1.0]
[1738649974394,26.79140049,207.24,207.2,1.0]
[1738649974994,4.8255,207.23,207.2,1.0]
[1738649977831,26.79140049,207.22,207.18,1.0]
[1738649978133,26.79140049,207.22,207.15,0.063]
[1738649978134,26.79140049,207.19,207.16,1.0]
[1738649978929,26.79140049,207.17,207.16,1.0]
[1738649979616,26.79140049,207.19,207.16,1.0]
[1738649980527,26.79140049,207.21,207.16,1.0]
[1738649981006,4.8257,207.22,207.21,1.0]
[1738649981523,4.8253,207.24,207.21,1.0]
[1738649982223,26.79140049,207.23,207.18,1.0]
[1738649982522,26.79140049,207.19,207.16,1.0]
[1738649983593,4.8267,207.18,207.16,1.0]
[1738649984015,26.79140049,207.17,207.16,1.0]
[1738649984213,26.79140049,207.17,207.15,0.063]
[1738649984525,26.79140049,207.17,207.15,0.0001]
[1738649984714,4.8267,207.18,207.15,0.0001]
[1738649985296,4.8264,207.2,207.19,1.0]
[1738649986110,28.44850049,207.23,207.19,1.0]
[1738649986323,4.8259,207.22,207.19,1.0]
[1738649986497,4.8259,207.22,207.21,1.0]
[1738649986698,4.8259,207.22,207.19,1.0]
[1738649986899,26.79140049,207.21,207.19,1.0]
[1738649987300,26.79140049,207.23,207.21,1.0]
[1738649987530,31.61700049,207.23,207.21,1.0]
[1738649987820,26.79140049,207.23,207.21,1.0]
[1738649988025,31.61690049,207.23,207.19,1.0]
[1738649988320,26.79140049,207.2,207.19,1.0]
[1738649989313,26.79140049,207.2,207.17,1.0]
[1738649989516,26.79140049,207.18,207.15,0.0001]
[1738649989719,26.79140049,207.16,207.15,0.0001]
[1738649989923,31.61850049,207.16,207.15,0.0001]
[1738649990812,33.25780049,207.16,207.15,0.0001]
[1738649991139,20.0,207.13,207.06,1.0]
[1738649991317,26.79140049,207.07,207.03,1.0]
[1738649991525,26.79140049,207.1,207.02,1.0]
[1738649991526,26.79140049,207.04,207.02,1.0]
[1738649992130,26.79140049,207.04,207.03,1.0]
[1738649992345,31.62130049,207.04,207.03,1.0]
[1738649993104,1.20654229,207.16,207.08,1.0]
[1738649993105,26.79140049,207.09,207.08,1.0]
[1738649993520,26.79140049,207.11,207.1,1.0]
[1738649993920,31.61970049,207.11,207.1,1.0]
[1738649995237,31.61970049,207.11,207.08,1.0]
[1738649996100,12.0679,207.16,207.08,1.0]
[1738649996101,26.79140049,207.13,207.08,1.0]
[1738649996932,26.79140049,207.13,207.09,1.0]
[1738649997334,26.79140049,207.13,207.1,1.0]
[1738649997627,4.8271,207.16,207.13,1.0]
[1738649997814,4.8271,207.16,207.14,1.0]
[1738649998013,63.33575991,207.19,207.14,1.0]
[1738649998215,26.79140049,207.17,207.14,1.0]
[1738649998814,26.79140049,207.15,207.13,1.0]
[1738649999635,4.8276,207.14,207.1,2.0]
[1738649999934,26.79140049,207.15,207.14,1.0]
[1738650000128,4.8273,207.16,207.14,1.0]
[1738650000340,26.79140049,207.15,207.1,1.0]
[1738650000521,26.79140049,207.11,207.08,1.063]
[1738650000717,26.79140049,207.09,207.08,0.0001]
[1738650001334,63.33575991,207.1,207.08,0.0001]
[1738650001538,4.8288,207.09,207.08,0.0001]
[1738650001736,4.95429,207.09,207.08,0.0001]
[1738650001954,20.12549,207.06,207.0,1.0]
[1738650002248,20.12549,207.06,206.94,1.063]
[1738650002249,20.0,206.98,206.94,1.063]
[1738650002414,26.79140049,206.95,206.94,0.063]
[1738650002822,28.00747382,206.95,206.94,0.0001]
[1738650003020,20.0,206.92,206.87,0.063]
[1738650003221,26.79140049,206.89,206.87,0.063]
[1738650003423,4.8337,206.88,206.87,0.063]
[1738650003722,4.8337,206.88,206.8,1.0]
[1738650003723,20.0,206.85,206.8,1.0]
[1738650003925,26.79140049,206.81,206.78,1.0]
[1738650004130,81.1,206.8,206.78,1.0]
[1738650004324,81.1,206.8,206.78,2.0]
[1738650004644,26.79140049,206.79,206.75,1.063]
[1738650004860,26.79140049,206.77,206.75,0.063]
[1738650005060,26.79140049,206.77,206.75,0.0001]
[1738650005061,81.1,206.76,206.75,0.0001]
[1738650005356,26.79140049,206.77,206.75,0.0001]
[1738650005661,20.0,206.74,206.67,1.0]
[1738650005857,20.0,206.74,206.63,0.063]
[1738650005858,26.79140049,206.72,206.69,2.0]
[1738650006029,26.79140049,206.72,206.71,1.0]
[1738650006223,81.1,206.73,206.72,1.0]
[1738650006547,107.89140049,206.73,206.68,1.0]
[1738650006725,26.79140049,206.71,206.7,1.0]
[1738650006920,25.90925064,206.86,206.83,2.0]
[1738650006921,26.79140049,206.84,206.83,2.0]
[1738650007127,4.8323,206.94,206.89,1.0]
[1738650007345,1.0,206.9,206.77,14.76100223]
[1738650007561,60.05525245,206.92,206.77,1.72574699]
[1738650007862,1.0,206.81,206.76,6.3492]
[1738650008157,1.0,206.78,206.76,6.3492]
[1738650008445,1.0,206.79,206.77,26.79140049]
[1738650008646,43.73332867,206.84,206.76,43.73332867]
[1738650008846,1.0,206.75,206.74,43.73332867]
[1738650009048,1.0,206.75,206.72,43.73332867]
[1738650009346,1.0,206.75,206.7,10.0578]
[1738650009347,1.0,206.79,206.74,43.73332867]
[1738650009848,1.0,206.75,206.72,43.73332867]
[1738650010033,1.0,206.75,206.7,43.73332867]
[1738650010749,1.0,206.82,206.74,43.73332867]
[1738650010957,1.0,206.75,206.74,43.73332867]
[1738650011670,1.0,206.8,206.74,43.73332867]
[1738650011969,1.0,206.74,206.68,43.73332867]
[1738650012163,1.0,206.72,206.68,43.73332867]
[1738650012454,1.0,206.77,206.7,43.73332867]
[1738650012752,1.0,206.76,206.73,43.73332867]
[1738650012959,1.0,206.79,206.73,43.73332867]
[1738650013136,1.0,206.82,206.75,43.73332867]
[1738650013331,1.0,206.78,206.77,43.73332867]
[1738650013727,1.0,206.76,206.75,43.73332867]
[1738650013957,1.0,206.76,206.73,43.73332867]
[1738650014564,1.0,206.74,206.69,43.73332867]
[1738650014766,1.0,206.71,206.69,43.73332867]
[1738650015052,1.0,206.71,206.67,43.73332867]
[1738650015261,1.0,206.69,206.67,43.73332867]
[1738650015848,1.0,206.78,206.68,4.8383]
[1738650016024,1.0,206.8,206.72,13.41184853]
[1738650016230,82.1,206.83,206.79,43.73332867]
[1738650016451,1.0,206.8,206.79,43.73332867]
[1738650016652,1.0,206.8,206.77,43.73332867]
[1738650016847,1.0,206.74,206.71,43.73332867]